Cogmind - Beta 13 @@@ ROGUE MODE // 2024.04.03 @ 19:42:08 Player: Eusmilis Result: Destroyed by G-47 Trooper with Particle Gun Performance ------------- Evolutions (2) 1000 Regions Visited (4) 800 Robots Destroyed (34) 170 Value Destroyed (1005) 1005 Prototype IDs (1) 20 Alien Tech Used (0) 0 Bonus (0) 0 TOTAL SCORE: 2995 Bonus ------- None Cogmind --------- Core Integrity 0/550 Matter 290/300 Energy 230/265 System Corruption 0% Temperature Warm (147) Movement Walking (330) Ox3 Location -8/Materials Parts ------- > --- POWER (1) -------- Improved Ion Engine > --- PROPULSION (3) --- Aluminum Leg > --- UTILITY (5) ------ Large Storage Unit Structural Scanner > --- WEAPON (2) ------- Beam Rifle Heavy Ion Cannon > --- INVENTORY (15) --- Enhanced Nuclear Core Improved Terrain Scanner Improved Light Armor Plating Particle Gun EM Pulse Cannon EM Pulse Cannon Peak State ------------ > --- POWER ------------ Light Nuclear Core > --- PROPULSION ------- Aluminum Leg VSS Leg > --- UTILITY ---------- Large Storage Unit Structural Scanner Targeting Computer Improved Utility Shielding Medium Reflective Plating > --- WEAPON ----------- Advanced Beam Cannon Heavy Ion Cannon > --- INVENTORY -------- Improved Ion Engine Light Deuterium Engine Enhanced Nuclear Core Aluminum Leg Improved Terrain Scanner Improved Light Armor Plating Beam Rifle Particle Gun EM Pulse Cannon EM Pulse Cannon Heavy Ion Cannon [Rating: 27] Favorites ----------- Power Light Nuclear Core Engine Ion Engine Power Core Light Nuclear Core Propulsion Aluminum Leg Leg Aluminum Leg Utility Structural Scanner Device Structural Scanner Storage Small Storage Unit Processor Targeting Computer Protection Medium Reflective Plating Weapon Light Assault Rifle Energy Gun Particle Gun Energy Cannon Advanced Beam Cannon Ballistic Gun Light Assault Rifle Launcher Grenade Launcher Special Weapon Mining Laser Build | -11 -10 -10 -10 -8 ------- Run | Yrd Mat Min Sub Mat Slots Evolved 4 | . . . . 4 Power . | . . . . . Propulsion 1 | . . . . 1 Utility 3 | . . . . 3 Weapon . | . . . . . Parts Attached 50 | 8 9 2 . 31 Power 9 | 1 1 . . 7 Engine 7 | 1 . . . 6 Core 2 | . 1 . . 1 Reactor . | . . . . . Propulsion 15 | 2 5 1 . 7 Treads . | . . . . . Leg 15 | 2 5 1 . 7 Wheel . | . . . . . Hover . | . . . . . Flight . | . . . . . Utility 10 | 3 1 . . 6 Device 4 | 2 1 . . 1 Storage 3 | 1 . . . 2 Processor 1 | . . . . 1 Hackware . | . . . . . Protection 2 | . . . . 2 Artifact . | . . . . . Weapon 16 | 2 2 1 . 11 Energy Gun 3 | . . . . 3 Energy Cannon 3 | . . . . 3 Ballistic Gun 6 | 2 2 . . 2 Ballistic Cannon . | . . . . . Launcher 2 | . . . . 2 Special Weapon 2 | . . 1 . 1 Impact Weapon . | . . . . . Slashing Weapon . | . . . . . Piercing Weapon . | . . . . . Special Melee Weapon . | . . . . . Unidentified Prototypes 1 | . . . . 1 Parts Lost 23 | . . . . 23 Power 4 | . . . . 4 Propulsion 7 | . . . . 7 Utility 5 | . . . . 5 Weapon 7 | . . . . 7 Highest Loss Streak 10 | . . . . 10 To Critical Strikes . | . . . . . Average Slot Usage (%) 95 | . 99 100 100 86 Engine 1 | . 1 . . 1 Core 10 | . 12 14 14 5 Leg 25 | . 27 28 28 22 Device 12 | . 13 14 14 11 Storage 13 | . 14 14 14 11 Processor 2 | . . . . 8 Protection 2 | . . . . 7 Energy Gun 1 | . . . . 5 Energy Cannon 2 | . . . . 7 Ballistic Gun 19 | . 28 27 14 3 Naked Turns . | . . . . . Heaviest Build 42 | 13 13 13 13 42 Greatest Support 32 | 20 20 20 20 32 Greatest Overweight (x) 2 | 1 . . . 2 Average Overweight (x) . | . . . . . Largest Inventory Capacity 15 | 8 8 8 8 15 Average Capacity 9 | 7 8 8 8 12 Most Carried 12 | 3 8 8 8 12 Average Carried 7 | 1 7 8 8 8 Final Capacity 15 | 8 8 8 8 15 Final Carried 8 | 3 8 8 8 6 Class Distribution -------------------- 79% | Mutant 20% | Scavenger-Mutant Dominant Class ---------------- Mutant | -10/Materials Mutant | -10/Mines Mutant | -10/Subcaves Scavenger-Mutant | -8/Materials Resources | -11 -10 -10 -10 -8 ----------- Run | Yrd Mat Min Sub Mat Matter Collected 896 | 292 197 116 . 291 Remotely 90 | 10 48 . . 32 Salvage Created 1212 | 73 359 91 . 689 Parts 62 | 7 20 2 . 33 Haulers Intercepted . | . . . . . Recyclers Shooed . | . . . . . Parts Field Recycled . | . . . . . Retrieved Matter . | . . . . . Parts Self-Destructed . | . . . . . Prevented . | . . . . . Kills | -11 -10 -10 -10 -8 ------- Run | Yrd Mat Min Sub Mat Combat Hostiles Destroyed 29 | . 10 2 . 17 Guns 18 | . 10 2 . 6 Cannons 9 | . . . . 9 AOE 1 | . . . . 1 Classes Destroyed 8 | 2 2 . . 4 Builder 1 | . . . . 1 Tunneler 1 | 1 . . . . Recycler 1 | 1 . . . . Watcher 2 | . . . . 2 Swarmer 9 | . 3 . . 6 Grunt 17 | . 7 2 . 8 Brawler 1 | . . . . 1 Sentry 2 | . . . . 2 Best Kill Streak 6 | 1 3 2 . 6 Combat Bots Only 6 | . 3 2 . 6 Max Kills in Single Turn 2 | 1 1 1 . 2 Gunslinging . | . . . . . Exploded 1 | . . . . 1 Melee . | . . . . . Uniques/NPCs Destroyed . | . . . . . Combat | -11 -10 -10 -10 -8 -------- Run | Yrd Mat Min Sub Mat Hostile Shots Fired 274 | . 73 14 . 187 Missed 66 | . 20 6 . 40 Damage Taken 2974 | . 617 122 . 2235 Core 785 | . 194 28 . 563 Absorbed by Shields . | . . . . . Redirected to Shielding 46 | . . . . 46 Ignored by Resistances 33 | . . . . 33 Regen/Repaired (Parts) 108 | . 108 . . . Core Remaining (%) 55 | 100 . . 11 . Volleys Fired 131 | 6 43 12 5 65 Largest 2 | 2 2 2 1 2 Hottest 133 | 40 40 100 100 133 Shots Fired 231 | 12 86 19 5 109 Gun 170 | 12 86 14 . 58 Cannon 45 | . . . . 45 Launcher 6 | . . . . 6 Special 10 | . . 5 5 . Kinetic 138 | 12 86 14 . 26 Thermal 80 | . . 5 5 70 Explosive 6 | . . . . 6 Electromagnetic 7 | . . . . 7 Robot Hit Streak 8 | 3 8 4 . 8 Robot Miss Streak 5 | 2 5 1 . 2 Penetration Max . | . . . . . Secondary Targets 1 | . . 1 . . Max Gunslinging Chain 1 | . . 1 . . Shots Hit Robots 139 | 6 50 10 . 73 Core Hits 75 | 4 26 6 . 39 Critical Kills 2 | . . . . 2 Critical Parts Destroyed . | . . . . . Critical Strikes 3 | . . . . 3 Burn 1 | . . . . 1 Meltdown 2 | . . . . 2 Melee Attacks . | . . . . . Impact . | . . . . . Slashing . | . . . . . Piercing . | . . . . . Sneak Attacks . | . . . . . Combat Hostiles . | . . . . . Follow-up Attacks . | . . . . . Damage Inflicted 2066 | 45 396 75 . 1550 Guns 1035 | 45 396 75 . 519 Cannons 731 | . . . . 731 Explosions 300 | . . . . 300 Melee . | . . . . . Ramming . | . . . . . Kinetic 637 | 45 396 75 . 121 Thermal 1050 | . . . . 1050 Explosive 300 | . . . . 300 Electromagnetic 79 | . . . . 79 Impact . | . . . . . Slashing . | . . . . . Piercing . | . . . . . Highest Corruption 1 | . 1 1 1 . Average Corruption 1 | . 1 1 1 . Corruption Purged . | . . . . . Corruption Blocked . | . . . . . Effects 6 | . 3 3 . . Message Errors 2 | . 1 1 . . Matter Fused 2 | . 2 . . . Energy Discharges 1 | . . 1 . . Data Loss (minor) 1 | . . 1 . . Overload Shots . | . . . . . Overflow Damage 10 | . . . . 10 Projectiles . | . . . . . Explosions 10 | . . . . 10 Melee . | . . . . . Knockbacks . | . . . . . Impact . | . . . . . Kinetic . | . . . . . Secondary . | . . . . . Self-Inflicted Damage . | . . . . . Shots . | . . . . . Rammed . | . . . . . Targets Rammed . | . . . . . Kicked . | . . . . . Crushed . | . . . . . Highest Temperature 859 | . 71 90 . 859 Average Temperature 161 | . 16 41 . 244 Received Heat Transfer 1446 | . 297 87 . 1062 Effects 32 | . . . . 32 Shutdowns 4 | . . . . 4 Energy Bleed 3 | . . . . 3 Interference 5 | . . . . 5 Matter Decay 2 | . . . . 2 Damage (minor) 2 | . . . . 2 Damage (major) 13 | . . . . 13 Damage (core) 3 | . . . . 3 Siege Activations . | . . . . . Robots Corrupted . | . . . . . Combat Hostiles . | . . . . . Parts Fried . | . . . . . Impact Corruptions . | . . . . . Robots Melted 2 | . . . . 2 Combat Hostiles 1 | . . . . 1 Parts Melted 8 | . . . . 8 Heat Transferred 2035 | . . . . 2035 Parts Sabotaged . | . . . . . Parts Stolen . | . . . . . Parts Stripped . | . . . . . Power Chain Reactions . | . . . . . Alert | -11 -10 -10 -10 -8 ------- Run | Yrd Mat Min Sub Mat Peak Influence 269 | 10 269 96 . 201 Initial 46 | . 6 46 . 3 Average 95 | 4 138 59 . 85 Maximum Alert Level 1 | . 1 . . 1 Low Security (%) 96 | 100 91 100 . 98 Level 1 3 | . 8 . . 1 Level 2 . | . . . . . Level 3 . | . . . . . Level 4 . | . . . . . Level 5 . | . . . . . High Security . | . . . . . Max Security . | . . . . . Squads Dispatched 5 | . 2 . . 3 Investigation 1 | . . . . 1 Extermination . | . . . . . Reinforcement 4 | . 2 . . 2 Assault . | . . . . . Garrison . | . . . . . Intercept . | . . . . . Searches Triggered . | . . . . . Construction Impeded 1 | . . . . 1 Haulers Reinforced . | . . . . . Active Scanning Responses . | . . . . . Cargo Convoy Interrupts . | . . . . . Stealth | -11 -10 -10 -10 -8 --------- Run | Yrd Mat Min Sub Mat Distress Signals 2 | . 1 . . 1 Communications Jammed . | . . . . . Distress Signals . | . . . . . Times Spotted 55 | . 21 5 . 29 Peak Tracking Total 7 | . 6 3 . 7 Tactical Retreats 6 | . 4 1 . 1 Traps | -11 -10 -10 -10 -8 ------- Run | Yrd Mat Min Sub Mat Traps Triggered 2 | . 1 . . 1 Indirectly . | . . . . . Trap Hack Attempts . | . . . . . Triggered . | . . . . . Disarmed . | . . . . . Reprogrammed . | . . . . . Reused . | . . . . . Traps Extracted . | . . . . . Installed . | . . . . . Triggered . | . . . . . Machines | -11 -10 -10 -10 -8 ---------- Run | Yrd Mat Min Sub Mat Machines Disabled . | . . . . . Max in Single Turn . | . . . . . Machines Repaired . | . . . . . Machines Dismantled . | . . . . . Machines Sabotaged . | . . . . . Overloaded Fab Kills . | . . . . . Hacking | -11 -10 -10 -10 -8 --------- Run | Yrd Mat Min Sub Mat Machines Accessed 11 | . 7 2 . 2 Terminals 7 | . 5 1 . 1 Fabricators . | . . . . . Repair Stations 1 | . 1 . . . Recycling Units 2 | . 1 . . 1 Scanalyzers . | . . . . . Garrison Access . | . . . . . Total Hacks 32 | . 21 3 . 8 Successful 14 | . 11 1 . 2 Failed 18 | . 10 2 . 6 Catastrophic 1 | . 1 . . . Database Lockouts . | . . . . . Manual . | . . . . . Terminals 22 | . 14 2 . 6 Fabricators . | . . . . . Repair Stations 5 | . 5 . . . Recycling Units 4 | . 2 . . 2 Scanalyzers . | . . . . . Garrison Access . | . . . . . Terminal Hacks 7 | . 5 1 . 1 Open Door 1 | . . 1 . . Branch Access Points 1 | . 1 . . . Emergency Access Points 1 | . 1 . . . Locate Traps 2 | . 2 . . . Registered Components 1 | . . . . 1 Zone Layout 1 | . 1 . . . Fabricator Hacks . | . . . . . Repair Station Hacks 4 | . 4 . . . Scan Component 2 | . 2 . . . Repair 2 | . 2 . . . Recycling Unit Hacks 3 | . 2 . . 1 Report Inventory 2 | . 1 . . 1 Retrieve Components 1 | . 1 . . . Scanalyzer . | . . . . . Garrison Access Hacks . | . . . . . Unauthorized Hacks . | . . . . . Terminals . | . . . . . Fabricators . | . . . . . Repair Stations . | . . . . . Recycling Units . | . . . . . Scanalyzers . | . . . . . Garrison Access . | . . . . . Data Cores Recovered . | . . . . . Used . | . . . . . Hacking Detections 8 | . 5 1 . 2 Full Trace Events . | . . . . . Feedback Events . | . . . . . Feedback Blocked . | . . . . . Robot Schematics Acquired . | . . . . . Robots Built . | . . . . . Authchips . | . . . . . Time . | . . . . . Total Robot Build Rating . | . . . . . Part Schematics Acquired . | . . . . . Parts Built . | . . . . . Authchips . | . . . . . Time . | . . . . . Total Part Build Rating . | . . . . . Parts Repaired 2 | . 2 . . . Time 52 | . 52 . . . Parts Recycled . | . . . . . Recycled Matter . | . . . . . Retrieved Matter . | . . . . . Retrieved Components 9 | . 9 . . . Parts Scanalyzed . | . . . . . Part Schematics Acquired . | . . . . . Parts Damaged . | . . . . . Bothacking | -11 -10 -10 -10 -8 ------------ Run | Yrd Mat Min Sub Mat Used RIF Installer . | . . . . . Robots Hacked . | . . . . . Non-combat . | . . . . . Combat . | . . . . . Robot Hacks Applied . | . . . . . Relay Couplers Released . | . . . . . Fabnet Peak Effective % . | . . . . . Robots Rewired . | . . . . . Allies Hacked . | . . . . . Hacks Repelled . | . . . . . Allies | -11 -10 -10 -10 -8 -------- Run | Yrd Mat Min Sub Mat Total Allies . | . . . . . Largest Group . | . . . . . Highest-Rated Group . | . . . . . Highest-Rated Ally . | . . . . . Total Orders . | . . . . . Ally Attacks . | . . . . . Total Damage . | . . . . . Kills . | . . . . . Allies Corrupted . | . . . . . Allies Melted . | . . . . . Intel | -11 -10 -10 -10 -8 ------- Run | Yrd Mat Min Sub Mat Robot Analysis Total . | . . . . . Derelict Logs Recovered 2 | . . 1 1 . Drone Launches . | . . . . . Drone Recoveries . | . . . . . Exploration | -11 -10 -10 -10 -8 ------------- Run | Yrd Mat Min Sub Mat Turns Passed 2557 | 122 938 600 100 797 Spaces Moved 1543 | 81 596 444 67 355 Core 8 | 8 . . . . Treads . | . . . . . Legs 1535 | 73 596 444 67 355 Wheels . | . . . . . Hover . | . . . . . Flight . | . . . . . Fastest Speed 50 | 50 120 120 120 90 Average Speed 128 | 114 120 120 120 159 Slowest Speed 260 | 120 120 120 120 260 Overloaded Moves . | . . . . . Propulsion Burnouts . | . . . . . Robots Hopped . | . . . . . Cave-ins Triggered . | . . . . . Exploration Rate (%) 40 | 6 72 93 6 26 Regions Visited 4 Branch Regions 2 Pre-discovered Areas 1 | . . . 1 . Known Exits Taken 1 | . 1 . . . Unknown Exits Taken 3 | 1 . 1 1 . Scrap Searched 1 | . . 1 . . Spaces Dug . | . . . . . Terrain Destroyed 44 | . . . . 44 Melee . | . . . . . Projectile 3 | . . . . 3 AOE 41 | . . . . 41 Terrain Rammed . | . . . . . Walls Destroyed . | . . . . . Machines Disabled . | . . . . . Actions | -11 -10 -10 -10 -8 --------- Run | Yrd Mat Min Sub Mat Total 1882 | 97 752 485 71 477 Wait 129 | . 92 27 . 10 Move 1539 | 80 595 443 66 355 Hop . | . . . . . Pick Up 20 | 2 5 . . 13 Fast Attach 20 | 8 3 . . 9 Attach 14 | . . . . 14 Detach 2 | 1 1 . . . Swap 16 | . 6 2 . 8 Drop 11 | . 7 1 . 3 Fire 131 | 6 43 12 5 65 Melee . | . . . . . Ram . | . . . . . Kick . | . . . . . Crush . | . . . . . Escape Stasis . | . . . . . Rewire . | . . . . . Trap . | . . . . . Miscellaneous . | . . . . . Route ------- -11/Scrapyard -10/Materials (discovered 3 exits: [*Mat x2] / *Min) -10/Mines (discovered 3 exits: [*Mat x2] / [*Sub]) -10/Subcaves -8/Materials (discovered 2 exits: Fac x2) History --------- Turn | Location | Event 11 | -11/Scrapyard | Discovered new exit (range 16) 123 | -11/Scrapyard | Entered Materials 175 | -10/Materials | Discovered new exit (range 16) 313 | -10/Materials | Build established: Mutant 344 | -10/Materials | Repaired Aluminum Leg 377 | -10/Materials | Repaired Aluminum Leg 519 | -10/Materials | Discovered new exit (range 3) 618 | -10/Materials | Discovered new exit (range 13) 638 | -10/Materials | Core integrity fell below 50% 915 | -10/Materials | Identified exit to Mines 1061 | -10/Materials | Entered Mines 1123 | -10/Mines | Core integrity fell below 20% 1146 | -10/Mines | Discovered new exit (range 12) 1239 | -10/Mines | Discovered new exit (range 12) 1329 | -10/Mines | Discovered new exit (range 10) 1335 | -10/Mines | YI-UF0 nonchalantly dropped a Grenade Launcher on the ground 1383 | -10/Mines | Learned location of 2 exits from Materials 1476 | -10/Mines | Found the Drone Emporium 1661 | -10/Mines | Entered Subcaves 1664 | -10/Subcaves | Learned location of Zion (-7) 1719 | -10/Subcaves | Discovered new exit (range 11) 1761 | -10/Subcaves | Entered Materials 1761 | -8/Materials | Evolved 4 slots: Propulsion x1, Utility x3 1762 | -8/Materials | Identified exit to Factory 2018 | -8/Materials | Lost 10 parts (1p2n2u5w) 2309 | -8/Materials | Build established: Scavenger-Mutant 2440 | -8/Materials | Core integrity fell below 50% 2475 | -8/Materials | Lost 3 parts (1p1n1u) 2541 | -8/Materials | Core integrity fell below 20% 2558 | -8/Materials | Destroyed by G-47 Trooper with Particle Gun Last Messages --------------- U-05 Engineer builds a Wall. Imp. Utility Shielding destroyed. Targeting Computer destroyed. VSS Leg destroyed. Heat Sink melted. Y-45 Defender destroyed. U-05 Engineer builds a Wall. Lgt. Deuterium Engine destroyed. M-28 Smith repairs Lgt. Nuclear Core. Aluminum Leg destroyed. M-28 Smith repairs G-47 Trooper. R-06 Scavenger collects Wheel. M-28 Smith repairs Lgt. Nuclear Core. Hvy. Ion Cannon destroyed. Acquired 20 matter. R-06 Scavenger collects Terrain Scan Processor. Critical hit (Burn: +37). K-01 Serf collects debris. Aluminum Leg destroyed. K-01 Serf collects debris. Map ----- +----------------------------------------------------+ | #####????????????????????????????????????????????? | | ##????????????????????????????????????????????? | | ##????????????????????????????????????????????? | | ##????????????????????????????????????????????? | | ##????????????????????????????????????????????? | | ##???????????????????==!??????????????????????? | | ###?????????????????? #????????????????????? | | ###?????????????????? #????????????????????? | | ##??????????????????? ????????????????????? | | ##??????????????????? ?????????????????????? | | ##??????????????????? ?????????????????????? | | ##???????????????????# m#?????????????????????? | | ##???????????????????# #?????????????????????? | | ##???????????????????# #?????????????????????? | | ##???????????????????+ #?????????????????????? | | ##???????????????????# #?????????????????????? | | ##???????????????????# #?????????????????????? | | ##??????#######?????## ##????????????????????? | | ##??????# ####### k ##???????????????????? | | ##?????## |!= ##???????????????????? | | ##?????# %!%* #????????????????????? | | ##?????#T * [g #????????????????????? | | ##?????#" ##### #????????????????????? | | ######### !! ##??###g###????????????????????? | | %%######### !! ##????#g#??????????????????????? | | % ! ##????#@#??????????????????????? | | % ##????# #??????????????????????? | | % ! ##????#+#??????????????????????? | | ####+######+### ##?????????????????????????????? | | %%= # # ##?????????????????????????????? | | * # # #??????????????????????????????? | | # "" # #??????????????????????????????? | | # T" # #??????????????????????????????? | | # "" # #??????????????????????????????? | | #] # #??????????????????????????????? | | ######## #??????????????????????????????? | | ## ##?????? #??????????????????????????????? | | #########?????? #??????????????????????????????? | | #########??????? #??????????????????????????????? | | ???????????????? #??????????????????????????????? | | ?????????????????????????????????????????????????? | | ?????????????????????????????????????????????????? | | ?????????????????????????????????????????????????? | | ?????????????????????????????????????????????????? | | ?????????????????????????????????????????????????? | | ?????????????????????????????????????????????????? | | ?????????????????????????????????????????????????? | | ?????????????????????????????????????????????????? | | ?????????????????????????????????????????????????? | | ?????????????????????????????????????????????????? | +----------------------------------------------------+ Best States ------------- Heat Dissipation 31 Energy Generation 14 Energy Capacity 265 Matter Stores 350 Matter Capacity 400 Sight Range 16 Terrain Scan Range 16 Terrain Scan Density 10 Armor Coverage 225 Resistance: TH 15 Utility Shielding 66 Evasion (%) 55 Targeting Accuracy 5 Item Schematics ----------------- None Robot Schematics ------------------ None Fabricated ------------ Nothing Alien Tech Used ----------------- None Achievements -------------- None Challenges ------------ None Game ------ Seed HypercooledEnergySheargun Manual? 0 Play Time 00:31:36 Cumulative 3.5 hours Start 2024.04.03 @ 06:34:05 End 2024.04.03 @ 19:42:08 Sessions 3 Manual Loads 0 Difficulty Rogue Special Mode None Game No. 8 Rogue 8 Adventurer 0 Explorer 0 Win Type - Total 0 Types 0/0/0/0/0/0/0/0/0 Lore% 8 Gallery% 9 Achievement% 8 Wizard Run 0 Options --------- Layout 1 ASCII 0 Keyboard 0 Movement Numpad Keybinds 0 Fullscreen 2 Font 32/SmallcapsGlow Map View 50x35 Zoom Use 0% Tactical HUD 0 Map Filters NONE Filters NONE Steam 0 RUN: 17f7e2ce-917e-41a9-804a-a3524f8faaea